bitfinex/quotes_ETHUSD_20260110
["timestamp","ask_amount","ask_price","bid_price","bid_amount"]
[1768069170820,3.2334036,3093.7,3093.0,0.90132289]
[1768069171156,0.44762332,3093.6,3093.0,0.90132289]
[1768069172561,3.2334036,3093.7,3093.0,0.90132289]
[1768069172757,4.22223324,3093.7,3092.9,0.00060351]
[1768069172934,0.98882964,3093.6,3092.9,0.00060351]
[1768069175190,0.95705221,3093.5,3092.9,0.00060351]
[1768069178306,4.18964252,3093.5,3092.9,0.00060351]
[1768069181103,0.001,3093.2,3092.9,0.00060351]
[1768069194122,0.001,3093.2,3092.9,0.96987262]
[1768069212452,0.001,3093.2,3092.9,0.00060351]
[1768069214541,0.001,3093.2,3092.9,0.25460351]
[1768069214746,0.001,3093.2,3092.9,0.25297734]
[1768069215941,0.001,3093.2,3092.6,0.002]
[1768069215942,0.9388855,3093.2,3092.6,0.002]
[1768069216115,0.9378855,3093.1,3092.6,0.256]
[1768069219544,4.17093057,3093.1,3092.6,0.256]
[1768069221948,0.9378855,3093.1,3092.6,0.256]
[1768069222670,4.17089564,3093.1,3092.6,0.256]
[1768069222948,3.23301014,3093.1,3092.6,0.256]
[1768069223945,4.17178346,3093.2,3092.6,0.256]
[1768069227862,4.17178346,3093.2,3092.9,0.002]
[1768069228155,4.91224167,3093.2,3092.9,0.002]
[1768069233853,3.97435617,3093.2,3092.9,0.002]
[1768069234055,3.23389796,3093.2,3092.9,0.002]
[1768069234668,0.001,3093.2,3092.9,0.002]
[1768069234967,0.001,3093.2,3092.9,0.95504578]
[1768069235460,3.23252564,3093.6,3093.0,0.95304578]
[1768069235659,3.23252564,3093.6,3093.1,0.254]
[1768069239476,0.001,3093.3,3093.1,0.254]
[1768069252174,0.001,3093.3,3093.1,0.19392888]
[1768069263011,0.001,3093.3,3093.1,1.09999396]
[1768069264519,0.001,3093.7,3093.3,0.98483043]
[1768069264729,0.001,3093.7,3093.5,0.98483043]
[1768069273536,0.001,3093.7,3093.2,0.98483043]
[1768069273736,0.001,3093.7,3093.3,0.254]
[1768069273960,0.001,3093.4,3093.3,0.254]
[1768069275638,0.001,3093.4,3093.1,0.97018774]
[1768069275833,0.001,3093.4,3093.0,0.254]
[1768069276138,0.001,3093.4,3092.9,0.002]
[1768069276328,0.001,3093.4,3092.9,0.98683043]
[1768069276536,0.001,3093.4,3092.9,1.20793664]
[1768069285345,0.001,3093.4,3093.2,0.002]
[1768069290138,0.001,3093.4,3093.2,0.98683043]
[1768069290669,0.001,3093.4,3093.2,0.002]
[1768069472649,0.95931051,3093.4,3093.2,0.002]
[1768069474049,3.23279345,3093.3,3093.2,0.002]
[1768069475951,4.19204189,3093.4,3093.2,0.002]
[1768069476572,0.95514081,3093.3,3093.2,0.002]
[1768069479442,0.001,3093.4,3093.2,0.002]
[1768069479771,0.95614081,3093.4,3093.2,0.002]
[1768069480566,4.18892091,3093.4,3093.2,0.002]
[1768069489882,3.2337801,3093.4,3093.2,0.002]
[1768069491374,0.001,3093.4,3093.2,0.002]
[1768069496279,0.78353958,3093.4,3092.7,0.96099585]
[1768069496453,1.03967192,3093.4,3092.7,0.96099585]
[1768069496786,1.96953264,3093.4,3092.7,0.96099585]
[1768069498787,3.23279345,3093.3,3092.7,0.96099585]
[1768069503595,3.23279345,3093.3,3093.0,0.002]
[1768069503995,0.001,3093.4,3093.0,0.002]
[1768069504366,4.1946876,3093.4,3093.0,0.002]
[1768069506283,0.001,3093.4,3093.0,0.002]
[1768069513716,4.15447108,3093.4,3093.0,0.002]
[1768069514027,0.920694,3093.3,3093.0,0.002]
[1768069516126,0.75885499,3093.2,3093.0,0.002]
[1768069521944,0.920694,3093.1,3093.0,0.002]
[1768069539530,4.15369648,3093.1,3093.0,0.002]
[1768069540630,4.15169649,3093.1,3093.0,0.002]
[1768069550185,3.2328982,3093.2,3093.0,0.002]
[1768069577002,6.4657964,3093.2,3093.0,0.002]
[1768069580589,7.43376006,3093.2,3092.6,0.256]
[1768069581230,8.36998069,3093.2,3092.6,0.256]
[1768069581404,8.36998069,3093.2,3092.6,0.002]
[1768069581405,1.00837619,3093.1,3092.6,0.002]
[1768069581891,1.13774961,3093.1,3092.6,0.002]
[1768069582587,4.20107067,3093.0,3092.6,0.002]
[1768069582986,7.43417768,3093.0,3092.6,0.002]
[1768069583419,0.96796366,3092.9,3092.6,0.002]
[1768069583718,0.96796366,3092.8,3092.6,0.002]
[1768069584206,0.254,3092.7,3092.6,0.002]
[1768069585908,3.48742063,3092.7,3092.6,0.002]
[1768069587636,0.254,3092.7,3092.6,0.002]
[1768069590395,0.254,3092.7,3092.4,0.254]
[1768069592625,3.4874465,3092.7,3092.1,1.19022063]
[1768069592797,3.4874465,3092.7,3092.1,1.44422063]
[1768069595518,1.15736533,3092.7,3092.1,0.508]
[1768069596925,0.254,3092.7,3092.1,0.508]
[1768069597132,0.254,3092.7,3092.6,0.002]
[1768069605436,1.15736533,3092.7,3092.6,0.002]
[1768069606018,0.254,3092.7,3092.6,0.002]
[1768069647280,3.234251,3092.9,3092.6,0.002]
[1768069647579,0.001,3092.9,3092.6,0.002]
[1768069648781,0.71748504,3092.9,3092.6,0.002]
[1768069653199,3.95071094,3092.9,3092.6,0.002]
[1768069665804,0.71748504,3092.9,3092.6,0.002]
[1768069668112,3.95069923,3092.9,3092.6,0.002]
[1768069678502,3.95069923,3092.9,3092.6,0.94394431]
[1768069679722,0.001,3092.9,3092.6,0.94394431]
[1768069680222,3.23421902,3092.9,3092.6,0.94394431]
[1768069680402,0.001,3092.9,3092.6,0.94394431]
[1768069683527,0.001,3092.9,3092.6,0.002]
[1768069708155,0.001,3092.9,3092.6,0.97352823]
[1768069713159,0.001,3092.9,3092.6,0.002]
[1768069729870,0.001,3092.9,3092.6,0.96732553]
[1768069735180,0.9656088,3092.9,3092.6,0.002]
[1768069738983,0.001,3092.9,3092.6,0.002]
[1768069741281,0.9656088,3092.9,3092.6,0.002]
[1768069742554,0.001,3092.9,3092.6,0.002]
[1768069749253,0.001,3093.4,3092.8,0.97318859]
[1768069749809,0.001,3093.4,3092.8,0.9473488]
[1768069750802,0.001,3093.4,3092.9,0.9473488]
[1768069751183,0.001,3093.4,3093.0,0.9473488]
[1768069752279,0.001,3093.4,3093.1,0.97015323]
[1768069756322,0.001,3093.7,3093.1,1.91750203]
[1768069756479,9.9e-07,3093.7,3093.3,0.97318859]
[1768069757010,4.02414473,3094.2,3093.4,1.91738283]
[1768069758522,4.02414473,3094.2,3093.4,0.9473488]
[1768069758817,4.02414473,3094.2,3093.5,0.97003089]
[1768069760008,4.02414473,3094.2,3093.5,1.91737969]
[1768069760183,3.23188495,3094.2,3093.6,0.9473488]
[1768069760510,0.001,3093.9,3093.6,0.9473488]
[1768069760814,0.001,3093.9,3093.7,0.96999325]
[1768069768426,0.001,3093.9,3093.4,0.9473488]
[1768069769009,0.001,3093.9,3093.4,1.8946976]
[1768069769304,0.001,3093.9,3093.5,0.19205374]
[1768069772428,0.001,3093.9,3093.6,0.002]
[1768069790948,0.001,3093.9,3093.6,0.97819212]
[1768069804839,0.001,3093.9,3093.6,0.002]
[1768069805873,0.001,3093.9,3093.5,0.19405374]
[1768069806176,0.90232477,3093.9,3093.5,0.002]
[1768069807849,4.13359576,3093.8,3093.2,0.96619791]
[1768069808051,4.13359576,3093.8,3093.2,1.22019791]
[1768069810381,0.90132477,3093.7,3093.2,0.254]
[1768069813286,3.27267437,3093.8,3093.2,1.19435812]
[1768069813480,3.27267437,3093.8,3093.2,1.41080267]
[1768069815373,0.04040469,3093.7,3093.2,1.41080267]
[1768069816782,0.04040469,3093.7,3093.2,0.47044455]
[1768069817683,3.27280682,3093.7,3093.2,0.47044455]
[1768069817845,3.23240213,3093.7,3093.0,0.94035812]
[1768069818050,3.23231308,3093.8,3093.0,0.94035812]
[1768069819570,3.23231308,3093.8,3093.5,0.002]
[1768069819771,3.23231308,3093.8,3093.0,0.94035812]
[1768069819948,3.23231308,3093.8,3093.1,0.94035812]
[1768069820280,0.001,3093.6,3093.1,0.94035812]
[1768069820581,0.001,3093.6,3093.1,0.94235812]
[1768069832103,0.001,3093.6,3093.4,0.002]
[1768069832304,0.001,3093.6,3093.2,0.94035812]
[1768069832505,0.001,3093.6,3093.1,0.002]
[1768069833909,0.001,3093.6,3093.1,0.93718672]
[1768069834286,0.001,3093.6,3093.1,0.96302651]
[1768069838208,0.001,3093.6,3093.3,0.96102651]
[1768069839808,0.001,3093.6,3093.3,0.02583979]
[1768069840512,0.001,3093.6,3093.3,0.96102651]
[1768069845802,0.001,3093.6,3093.4,0.002]
[1768069865148,0.96550486,3093.6,3093.4,0.002]
[1768069866438,0.001,3093.6,3093.4,0.002]
[1768069867609,0.96550486,3093.6,3093.4,0.002]
[1768069870343,0.96550486,3093.6,3093.2,0.254]
[1768069875717,0.001,3093.6,3093.2,0.254]
[1768069885957,0.001,3093.6,3093.2,0.27983979]
[1768069889733,0.96550486,3093.6,3093.2,0.27983979]
[1768069895767,0.96550486,3093.6,3093.2,0.254]
[1768069901788,0.001,3093.6,3093.2,0.254]
[1768069902100,0.96936597,3093.6,3093.2,0.254]
[1768069906759,0.001,3093.6,3093.2,0.254]
[1768069920218,0.92235481,3093.6,3093.2,0.254]
[1768069922213,0.001,3093.6,3093.2,0.254]
[1768069923920,0.9503443,3093.6,3093.2,0.254]
[1768069925309,0.001,3093.6,3093.2,0.254]
[1768069939037,0.001,3093.6,3093.3,0.98971466]
[1768069961153,0.001,3093.6,3093.2,1.2033443]
[1768069961354,4.13915164,3094.2,3093.4,0.92357791]
[1768069961560,0.73719115,3094.1,3093.4,0.92357791]
[1768069961858,1.64640895,3094.1,3093.4,0.92357791]
[1768069963238,4.87836791,3094.1,3093.4,0.92357791]
[1768069963438,4.14117676,3094.1,3093.4,0.92357791]
[1768069969970,0.9092178,3094.0,3093.3,0.99588009]
[1768069973469,0.001,3093.7,3093.3,0.99588009]
[1768069978391,0.001,3093.7,3093.3,0.9700403]
[1768069978556,0.98498286,3093.7,3093.3,0.9700403]
[1768069979575,0.98498286,3093.7,3093.2,0.254]
[1768069979776,0.98498286,3093.7,3093.2,1.2240403]
[1768069981454,4.21737305,3093.7,3093.2,1.2240403]
[1768069981654,0.98498286,3093.7,3093.2,1.2240403]
[1768069982514,0.98398286,3093.6,3093.1,0.002]
[1768069983078,0.98398286,3093.6,3092.6,0.002]
[1768069983381,0.96596376,3093.4,3092.6,0.002]
[1768069984118,0.96596376,3093.3,3092.6,0.002]
[1768069985390,4.19886172,3093.2,3093.1,0.002]
[1768069985590,4.96742689,3093.2,3093.1,0.002]
[1768069986746,4.96742689,3093.2,3092.1,0.02583979]
[1768069986747,0.96596376,3093.1,3091.8,0.02783979]
[1768069986947,0.96596376,3092.4,3091.5,0.002]
[1768069987074,0.96596376,3092.2,3091.5,0.002]
[1768069987291,0.96596376,3092.0,3091.5,0.002]
[1768069989403,3.23425725,3091.9,3091.5,0.002]
[1768069989608,0.96596376,3091.8,3091.5,0.002]
[1768069991049,0.96596376,3091.6,3091.5,0.002]
[1768069992311,0.96596376,3093.1,3091.8,0.9052968]
[1768069992526,0.96596376,3093.1,3091.9,0.28619394]
[1768069992706,0.96596376,3092.9,3091.7,0.254]
[1768069992905,0.96596376,3092.7,3091.7,0.254]
[1768069993229,0.96596376,3092.6,3091.8,0.9072968]
[1768070003623,1.00638413,3092.5,3091.8,0.9072968]
[1768070004751,0.96596376,3092.5,3091.8,0.9072968]
[1768070005915,0.96596376,3092.5,3091.8,1.11395616]
[1768070006322,0.96596376,3092.5,3091.8,0.20665936]
[1768070006825,0.96596376,3092.5,3091.9,0.97045451]
[1768070009237,0.96596376,3092.5,3092.1,0.002]
[1768070009422,0.001,3092.3,3092.1,0.002]
[1768070028993,0.001,3092.3,3092.1,0.95596797]
[1768070034004,0.001,3092.3,3092.1,0.002]
[1768070043219,9.9e-07,3092.9,3092.3,0.93622377]
[1768070043519,9.9e-07,3092.9,3092.4,0.17499308]
[1768070043828,9.9e-07,3092.9,3092.3,0.93622377]
[1768070044817,9.9e-07,3092.9,3092.2,0.254]
[1768070044818,0.001,3093.7,3092.7,0.96456128]
[1768070045111,4.14897959,3093.7,3092.8,0.96456128]
[1768070045612,0.91559561,3093.6,3092.8,0.96456128]
[1768070046518,4.1480879,3093.6,3092.8,0.96456128]
[1768070047718,0.91559561,3093.6,3092.8,0.96456128]
[1768070048018,0.91559561,3093.6,3092.8,1.54714299]
[1768070050349,4.14808236,3093.6,3092.8,1.54714299]
[1768070055355,0.001,3093.3,3092.8,1.54714299]
[1768070056833,0.001,3093.3,3092.9,0.96456128]
[1768070057562,0.001,3093.3,3092.8,0.58258171]
[1768070057760,0.001,3093.3,3092.9,0.1801143]
[1768070059121,0.001,3093.3,3092.7,0.254]
[1768070059552,0.91659561,3093.3,3092.7,0.254]
[1768070060659,0.91559561,3093.2,3092.7,0.254]
[1768070060826,0.91559561,3093.2,3092.5,3.82]
[1768070061027,0.91559561,3093.2,3092.4,0.254]
[1768070061257,0.91559561,3093.2,3092.5,0.4074]
[1768070063060,0.91559561,3093.1,3092.5,0.4074]
[1768070066966,0.91559561,3093.1,3092.8,0.002]
[1768070067257,0.001,3092.9,3092.8,0.002]
[1768070088400,0.001,3092.9,3092.8,0.95026448]
[1768070088904,0.001,3092.9,3092.8,0.002]
[1768070091002,0.001,3093.3,3092.8,0.002]
[1768070091223,0.001,3093.3,3092.8,0.95026448]
[1768070091404,0.001,3093.3,3092.9,0.94826448]
[1768070100589,0.001,3093.3,3092.8,0.002]
[1768070101114,0.94290182,3093.3,3092.8,0.002]
[1768070102885,0.001,3093.0,3092.8,0.002]
[1768070119223,0.001,3093.0,3092.8,0.98172555]
[1768070124353,0.001,3093.0,3092.8,0.002]
[1768070127330,0.95898749,3093.2,3092.8,0.002]
[1768070131060,0.001,3093.3,3092.8,0.98172555]
[1768070132562,0.001,3093.3,3092.8,0.002]
[1768070132807,0.95998749,3093.3,3092.8,0.002]
[1768070137241,0.001,3093.0,3092.8,0.002]
[1768070139277,0.95998749,3093.3,3092.8,0.002]
[1768070148879,0.001,3093.0,3092.8,0.002]
[1768070149064,0.95998749,3093.3,3092.8,0.46265741]
[1768070160205,0.001,3093.0,3092.8,0.46265741]
[1768070160505,0.95998749,3093.3,3092.8,0.46265741]
[1768070161804,0.95998749,3093.3,3092.8,0.002]
[1768070171822,0.001,3093.0,3092.8,0.002]
[1768070176530,0.95998749,3093.3,3092.8,0.002]
[1768070176836,0.001,3093.3,3092.8,0.002]
[1768070181846,0.001,3093.3,3092.8,0.9779756]
[1768070186655,0.001,3093.3,3092.8,0.002]
[1768070186948,0.001,3093.3,3092.8,0.9779756]
[1768070193451,0.001,3093.3,3092.8,0.002]
[1768070193655,0.001,3093.3,3092.8,0.99464169]
[1768070194022,0.001,3093.3,3092.8,0.002]
[1768070194354,0.001,3093.3,3092.8,0.99464169]
[1768070195248,0.001,3093.0,3092.8,0.002]
[1768070195452,0.001,3093.3,3092.8,0.99464169]
[1768070196062,3.23250185,3093.6,3092.8,0.99464169]
[1768070196570,4.15276994,3093.6,3092.8,0.99464169]
[1768070196756,3.48650185,3093.6,3092.8,0.99464169]
[1768070197156,4.40676994,3093.6,3092.8,0.99464169]
[1768070198073,3.48650185,3093.6,3092.8,0.99464169]
[1768070200857,4.40676994,3093.6,3092.8,0.99464169]
[1768070201050,0.92026809,3093.5,3092.8,0.99464169]
[1768070202272,4.15364994,3093.7,3092.8,0.99464169]
[1768070202441,3.23217181,3093.9,3093.0,0.99264169]
[1768070202442,0.254,3093.9,3093.0,0.99264169]
[1768070203050,0.92026809,3094.0,3093.0,0.99264169]
[1768070203367,4.40643461,3093.9,3093.0,0.99264169]
[1768070206375,0.92026809,3093.8,3093.0,0.99264169]
[1768070206746,0.92026809,3093.8,3093.1,0.002]
[1768070206946,0.001,3093.6,3093.1,0.002]
[1768070211167,3.23347995,3093.6,3093.1,0.002]
[1768070211875,0.92026809,3093.5,3093.1,0.002]
[1768070218359,0.92026809,3093.5,3093.4,0.002]
[1768070218889,0.001,3093.6,3093.4,0.002]
[1768070221784,0.001,3093.6,3093.4,0.96532399]
[1768070226773,0.001,3093.6,3093.4,0.002]
[1768070249519,0.97680147,3093.6,3093.4,0.002]
[1768070249700,1.01620877,3093.5,3093.4,0.002]
[1768070250013,0.0404073,3093.5,3093.4,0.002]
[1768070253292,3.27299175,3093.5,3093.4,0.002]
[1768070254524,3.23258445,3093.5,3093.4,0.002]
[1768070255525,3.23347995,3093.6,3093.4,0.002]
[1768070264331,3.9183924,3093.6,3093.2,0.91515507]
[1768070265216,3.9183924,3093.6,3093.1,0.002]
[1768070265420,3.9183924,3093.6,3093.2,0.91515507]
[1768070266024,3.9183924,3093.6,3093.1,0.002]
[1768070270643,4.90426881,3093.6,3093.1,0.002]
[1768070276736,4.90426881,3093.6,3093.4,0.002]
[1768070277054,0.82660047,3093.5,3093.4,0.002]
[1768070279129,5.03051488,3093.5,3093.4,0.002]
[1768070279858,5.03051488,3093.5,3093.1,0.002]
[1768070280038,0.04040861,3093.4,3093.1,0.002]
[1768070280846,1.01173857,3093.4,3093.1,0.002]
[1768070281035,0.97132996,3093.3,3093.1,0.002]
[1768070281226,4.20422792,3093.2,3093.1,0.002]
[1768070281432,4.20422792,3093.2,3092.5,4.78432789]
[1768070281643,3.23289796,3093.2,3092.5,4.78432789]
[1768070281851,3.23289796,3093.2,3092.8,0.96432789]
[1768070282044,0.04040991,3093.3,3092.8,0.96432789]
[1768070282045,3.27324683,3093.3,3092.8,0.96432789]
[1768070284864,3.98748757,3093.3,3092.8,0.96432789]
[1768070286040,4.20107766,3093.3,3092.8,0.96432789]
[1768070286266,4.20107766,3093.3,3092.8,0.002]
[1768070286564,5.16740555,3093.3,3092.8,0.002]
[1768070286945,0.95514991,3093.2,3092.8,0.002]
[1768070287134,1.94139427,3093.2,3092.8,0.002]
[1768070287531,0.95514991,3093.1,3092.8,0.002]
[1768070295838,4.45312503,3093.3,3092.8,0.002]
[1768070296156,2.1754778,3093.3,3092.8,0.002]
[1768070296332,1.22032789,3093.3,3092.8,0.002]
[1768070296533,1.76114877,3093.3,3092.8,0.93555327]
[1768070297167,1.50714877,3093.3,3092.8,0.93555327]
[1768070297474,0.96632789,3093.3,3092.8,0.002]
[1768070298236,0.96632789,3093.3,3092.8,0.93555327]
[1768070298653,0.96632789,3093.3,3092.8,0.002]
[1768070298951,0.96632789,3093.3,3092.8,0.93555327]
[1768070300581,0.001,3093.0,3092.8,0.93555327]
[1768070302747,0.001,3093.0,3092.8,0.002]
[1768070304881,0.001,3093.0,3092.8,0.93555327]
[1768070306186,0.001,3093.0,3092.8,0.002]
[1768070387383,0.001,3093.0,3092.8,0.92993478]
[1768070388915,0.001,3093.0,3092.8,0.002]
[1768070401241,0.95114216,3093.0,3092.8,0.002]
[1768070413354,0.001,3093.0,3092.8,0.002]
[1768070438707,0.001,3093.0,3092.8,0.90305997]
[1768070443707,0.001,3093.0,3092.8,0.002]
[1768070448399,0.97505723,3093.5,3092.8,0.002]
[1768070448604,1.8761172,3093.5,3092.8,0.90305997]
[1768070451082,0.97505723,3093.5,3092.8,0.90305997]
[1768070452888,0.97505723,3093.5,3092.8,0.002]
[1768070460434,0.001,3093.2,3092.8,0.002]
[1768070460599,0.001,3093.2,3092.9,0.22076411]
[1768070464407,0.001,3093.2,3092.8,0.002]
[1768070486966,0.91323821,3093.2,3092.8,0.002]
[1768070489362,0.91323821,3093.2,3092.7,1.15833776]
[1768070492258,4.20185611,3093.6,3092.7,1.15833776]
[1768070492442,0.91223821,3093.5,3092.7,1.15833776]
[1768070494763,1.44904764,3093.5,3093.0,0.002]
[1768070495577,0.001,3093.2,3093.0,0.002]
[1768070510189,5.11502926,3093.5,3093.0,0.002]
[1768070510376,0.98642401,3093.4,3093.0,0.002]
[1768070517803,0.97019716,3093.5,3093.0,0.002]
[1768070518399,1.96812814,3093.5,3093.0,0.002]
[1768070522512,5.20073515,3093.5,3093.0,0.002]
[1768070522710,6.06954854,3093.5,3093.0,0.002]
[1768070526009,2.83694153,3093.5,3093.0,0.002]
[1768070527233,1.83901055,3093.5,3093.0,0.002]
[1768070529835,0.001,3093.2,3093.0,0.002]
[1768070530133,0.97019716,3093.5,3093.0,0.002]
[1768070530434,1.51529476,3093.5,3093.0,0.002]
[1768070530635,0.97019716,3093.5,3093.0,0.002]
[1768070531234,1.96344941,3093.5,3093.0,0.002]
[1768070531415,5.1960447,3093.5,3093.0,0.002]
[1768070542128,0.001,3093.2,3093.0,0.002]
[1768070543828,5.1960447,3093.5,3093.0,0.002]
[1768070544148,6.06438787,3093.5,3093.0,0.002]
[1768070545348,5.09419071,3093.5,3093.0,0.002]
[1768070545949,4.22584754,3093.5,3093.0,0.002]
[1768070549952,5.45097552,3093.6,3093.0,0.002]
[1768070553550,0.001,3093.2,3093.0,0.002]
[1768070553754,5.45097552,3093.6,3093.0,0.002]
[1768070562530,4.19937473,3093.5,3093.0,0.002]
[1768070565564,0.001,3093.3,3093.0,0.002]
[1768070575589,1.34980919,3093.3,3093.0,0.002]
[1768070576791,0.92977172,3093.3,3093.0,0.002]
[1768070580294,4.16257878,3093.3,3093.0,0.002]
[1768070580589,0.92977172,3093.3,3093.0,0.002]
[1768070580990,0.001,3093.3,3093.0,0.002]
[1768070605543,0.001,3093.3,3093.0,0.94089069]
[1768070605745,0.254,3093.4,3093.0,0.94089069]
[1768070605947,1.22423795,3093.5,3093.0,0.94089069]
[1768070606150,0.254,3093.5,3093.0,0.94089069]
[1768070611863,0.001,3093.2,3093.0,0.94089069]
[1768070612062,0.254,3093.5,3093.0,1.49532517]
[1768070612363,0.254,3093.5,3093.0,0.94089069]
[1768070613470,3.48660951,3093.5,3093.0,0.94089069]
[1768070614465,0.254,3093.5,3093.0,0.94089069]
[1768070622689,0.254,3093.5,3093.0,0.002]
[1768070623382,0.001,3093.2,3093.0,0.002]
[1768070623680,0.254,3093.5,3093.1,0.46054542]
[1768070623876,0.254,3093.5,3093.0,0.002]
[1768070631603,0.254,3093.5,3093.0,1.00147241]
[1768070632300,3.23352713,3093.6,3093.0,1.00147241]
[1768070632470,0.254,3093.5,3093.0,1.00147241]
[1768070634814,0.001,3093.2,3093.0,1.00147241]
[1768070635102,0.001,3093.2,3093.1,0.56049266]
[1768070635804,0.254,3093.5,3093.1,0.56049266]
[1768070641711,0.254,3093.5,3093.1,1.49523869]
[1768070642283,0.255,3093.6,3093.1,1.49523869]
[1768070644208,3.4874837,3093.6,3093.1,1.49523869]
[1768070644407,0.92558496,3093.5,3093.0,0.002]
[1768070646408,0.001,3093.3,3093.0,0.002]
[1768070707146,0.001,3093.3,3093.1,0.93449563]
[1768070707741,0.001,3093.3,3093.0,0.002]
[1768070729765,0.001,3093.3,3093.0,0.93649563]
[1768070730455,0.001,3093.3,3093.0,0.002]
[1768070731154,0.001,3093.3,3093.0,0.93649563]
[1768070731654,0.001,3093.3,3093.0,0.002]
[1768070732453,0.001,3093.3,3093.0,0.93649563]
[1768070733026,0.001,3093.3,3093.0,0.002]
[1768070739361,0.001,3093.3,3093.0,0.91125083]
[1768070739737,0.001,3093.3,3093.0,0.002]
[1768070740768,0.001,3093.3,3093.1,0.90925083]
[1768070741060,0.001,3093.3,3093.0,0.002]
[1768070749975,0.001,3093.3,3093.0,0.91125083]
[1768070750544,0.001,3093.3,3093.0,0.002]
[1768070751484,0.001,3093.3,3093.1,0.90925083]
[1768070753586,0.001,3093.3,3093.0,0.002]
[1768070753886,0.001,3093.3,3093.1,0.96960025]
[1768070755895,0.001,3093.3,3093.0,0.002]
[1768070756974,0.001,3093.3,3093.0,0.97160025]
[1768070757481,0.001,3093.3,3093.0,0.002]
[1768070757681,0.001,3093.3,3093.0,0.97160025]
[1768070758289,0.001,3093.3,3093.0,0.002]
[1768070758804,0.001,3093.3,3093.1,0.96960025]
[1768070758978,0.001,3093.3,3093.0,0.002]
[1768070759893,0.001,3093.3,3093.0,0.97160025]
[1768070761287,0.001,3093.3,3093.0,0.002]
[1768070762900,0.001,3093.3,3093.0,0.97160025]
[1768070763404,0.001,3093.3,3093.0,0.002]
[1768070764306,0.001,3093.3,3093.0,0.98991841]
[1768070768812,0.001,3093.3,3093.0,0.002]
[1768070769598,0.95869896,3093.3,3093.0,0.002]
[1768070769798,0.001,3093.3,3093.0,0.002]
[1768070770000,0.001,3093.3,3093.0,0.98991841]
[1768070770395,0.95869896,3093.3,3093.0,0.002]
[1768070771501,0.94031581,3093.3,3093.0,0.002]
[1768070772919,4.17312572,3093.3,3093.0,0.002]
[1768070773112,0.95769896,3093.2,3093.0,0.002]
[1768070775409,0.99811018,3093.2,3093.0,0.002]
[1768070775579,0.95769896,3093.1,3093.0,0.002]
[1768070775785,0.95769896,3093.0,3092.6,0.97225677]
[1768070776186,0.97040114,3092.9,3092.6,0.97225677]
[1768070776387,0.97040114,3092.9,3092.6,0.002]
[1768070777589,0.254,3093.1,3092.7,4.60398584]
[1768070777891,0.254,3093.1,3092.7,5.16357626]
[1768070778304,0.254,3093.1,3092.8,0.97032268]
[1768070778922,3.23279345,3093.3,3092.8,0.97032268]
[1768070779121,4.19049241,3093.3,3092.8,0.97032268]
[1768070780816,3.23279345,3093.3,3092.8,1.95824109]
[1768070781022,3.23279345,3093.3,3092.9,0.98791841]
[1768070781318,4.00177428,3093.3,3092.8,0.97032268]
[1768070781503,0.95769896,3093.2,3092.8,0.97032268]
[1768070781704,4.00177428,3093.3,3092.8,0.97032268]
[1768070782102,4.95947324,3093.3,3092.8,0.97032268]
[1768070786509,0.001,3093.0,3092.8,0.97032268]
[1768070798256,0.001,3093.0,3092.6,0.002]
[1768070798825,0.001,3093.0,3092.6,0.22362254]
[1768070811381,0.001,3093.0,3092.9,0.002]
[1768070853387,0.90553093,3093.0,3092.9,0.002]
[1768070853605,0.90553093,3093.0,3092.6,0.002]
[1768070855318,4.1386396,3093.0,3092.6,0.002]
[1768070857618,4.55250356,3093.0,3092.6,0.002]
[1768070857821,4.1386396,3093.0,3092.6,0.002]
[1768070859221,4.1386396,3093.0,3092.6,0.51]
[1768070859522,4.1386396,3093.0,3092.6,0.002]
[1768070869398,4.1386396,3093.0,3092.9,0.002]
[1768070873637,0.001,3093.0,3092.9,0.002]
[1768070891768,0.001,3093.0,3092.6,0.002]
[1768070891981,0.001,3093.0,3092.7,0.92231319]
[1768070895580,0.001,3093.0,3092.6,0.002]
[1768070895972,0.94184001,3093.0,3092.6,0.002]
[1768070896587,4.17500539,3093.0,3092.6,0.002]
[1768070902683,0.94084001,3092.9,3092.6,0.002]
[1768070903390,0.94084001,3092.9,3092.6,0.514]
[1768070910800,4.17406174,3092.9,3092.6,0.514]
[1768070912408,0.94084001,3092.9,3092.6,0.514]
[1768070912901,4.17405233,3092.9,3092.6,0.514]
[1768070915603,0.001,3093.0,3092.6,0.514]
[1768070915806,0.001,3093.0,3092.9,0.002]
[1768070916102,0.9946324,3093.0,3092.9,0.002]
[1768070917808,4.22773941,3093.0,3092.9,0.002]
[1768070925511,4.9738058,3093.0,3092.9,0.002]
[1768070934335,4.22773941,3093.0,3092.9,0.002]
[1768070935311,4.22773941,3093.0,3092.6,0.514]
[1768070935312,4.22773941,3093.0,3092.6,1e-08]
[1768070935503,0.04041514,3092.9,3092.6,1e-08]
[1768070936041,7.46084642,3093.0,3092.6,1e-08]
[1768070936430,0.04041514,3092.9,3092.6,1e-08]
[1768070936603,7.46084642,3093.0,3092.6,1e-08]
[1768070938830,0.04041514,3092.9,3092.6,1e-08]
[1768070939002,7.46084642,3093.0,3092.6,1e-08]
[1768070940436,4.22773941,3093.0,3092.6,1e-08]
[1768070949945,4.22773941,3093.0,3092.9,0.002]
[1768070950121,4.97381442,3093.0,3092.9,0.002]
[1768070963674,3.98018202,3093.0,3092.9,0.002]
[1768071001029,7.21328903,3093.0,3092.6,0.17462561]